fUST/lending_fUST_20240731
["ID","MTS","AMOUNT","RATE_DAILY","PERIOD"]
[333714152,1722397848416,-500.0,0.00014571,2]
[333714153,1722397848426,-251.23552528,0.00014571,2]
[333714154,1722397848436,-500.0,0.00014571,2]
[333714155,1722397848448,-525.45356559,0.00014571,2]
[333714156,1722397848460,-503.86196515,0.00014571,2]
[333714157,1722397848470,-500.0,0.00014571,2]
[333714158,1722397848479,-475.60628926,0.00014571,2]
[333714159,1722397848488,-500.0,0.00014571,2]
[333714160,1722397848499,-500.0,0.00014571,2]
[333714161,1722397848508,-500.0,0.00014571,2]
[333714162,1722397848518,-500.0,0.00014571,2]
[333714163,1722397848528,-503.04902526,0.00014571,2]
[333714164,1722397848538,-501.98404229,0.00014571,2]
[333714165,1722397848549,-510.97775708,0.00014571,2]
[333714166,1722397848560,-500.0,0.00014571,2]
[333714167,1722397848570,-500.0,0.00014571,2]
[333714168,1722397848581,-503.85498969,0.00014571,2]
[333714169,1722397848593,-514.11820053,0.00014571,2]
[333714170,1722397848603,-500.0,0.00014571,2]
[333714171,1722397848613,-506.33292771,0.00014571,2]
[333714172,1722397848624,-500.0,0.00014571,2]
[333714173,1722397848635,-500.0,0.00014571,2]
[333714174,1722397848645,-500.0,0.00014571,2]
[333714175,1722397848657,-500.0,0.00014571,2]
[333714176,1722397848666,-500.0,0.00014571,2]
[333714177,1722397848677,-500.0,0.00014571,2]
[333714178,1722397848687,-1362.29,0.00014571,2]
[333714179,1722397848698,-500.0,0.00014571,2]
[333714180,1722397848707,-506.83413606,0.00014571,2]
[333714181,1722397848717,-500.0,0.00014571,2]
[333714182,1722397848726,-524.23080895,0.00014571,2]
[333714183,1722397848735,-500.0,0.00014571,2]
[333714184,1722397848745,-151.0,0.00014571,2]
[333714185,1722397848754,-505.90459877,0.00014571,2]
[333714186,1722397848764,-500.0,0.00014571,2]
[333714187,1722397848773,-500.0,0.00014571,2]
[333714188,1722397848783,-500.0,0.00014571,2]
[333714189,1722397848792,-500.0,0.00014571,2]
[333714190,1722397848801,-500.0,0.00014571,2]
[333714191,1722397848811,-500.0,0.00014571,2]
[333714192,1722397848821,-500.0,0.00014571,2]
[333714193,1722397848830,-500.0,0.00014571,2]
[333714194,1722397848840,-500.0,0.00014571,2]
[333714195,1722397848849,-511.42,0.00014571,2]
[333714196,1722397848859,-500.0,0.00014571,2]
[333714197,1722397848868,-500.0,0.00014571,2]
[333714198,1722397848878,-500.0,0.00014571,2]
[333714199,1722397848887,-508.28510947,0.00014571,2]
[333714200,1722397848897,-500.0,0.00014571,2]
[333714201,1722397848907,-501.44353422,0.00014571,2]
[333714202,1722397848916,-605.56719454,0.00014571,2]
[333714203,1722397848927,-514.33380493,0.00014571,2]
[333714204,1722397848936,-500.0,0.00014571,2]
[333714205,1722397848945,-500.0,0.00014571,2]
[333714206,1722397848954,-500.0,0.00014571,2]
[333714207,1722397848964,-500.0,0.00014571,2]
[333714208,1722397848973,-500.0,0.00014571,2]
[333714209,1722397848984,-500.0,0.00014571,2]
[333714210,1722397848993,-500.0,0.00014571,2]
[333714211,1722397849003,-530.03,0.00014571,2]
[333714212,1722397849012,-151.0,0.00014571,2]
[333714213,1722397849021,-151.0,0.00014571,2]
[333714214,1722397849031,-500.0,0.00014571,2]
[333714215,1722397849040,-500.0,0.00014571,2]
[333714216,1722397849050,-1623.16,0.00014571,2]
[333714217,1722397849060,-505.5478458,0.00014571,2]
[333714218,1722397849070,-500.0,0.00014571,2]
[333714219,1722397849080,-528.85755404,0.00014571,2]
[333714220,1722397849090,-500.0,0.00014571,2]
[333714221,1722397849102,-500.59288483,0.00014571,2]
[333714222,1722397849112,-503.21491463,0.00014571,2]
[333714223,1722397849122,-500.0,0.00014571,2]
[333714224,1722397849132,-500.0,0.00014571,2]
[333714225,1722397849141,-166.724766,0.00014571,2]
[333714226,1722397849151,-166.724766,0.00014571,2]
[333714227,1722397849160,-151.0,0.00014571,2]
[333714228,1722397849170,-500.0,0.00014571,2]
[333714229,1722397849180,-151.0,0.00014571,2]
[333714230,1722397849190,-166.724766,0.00014571,2]
[333714231,1722397849200,-166.724766,0.00014571,2]
[333714232,1722397849211,-151.0,0.00014571,2]
[333714233,1722397849223,-151.0,0.00014571,2]
[333714234,1722397849232,-151.0,0.00014571,2]
[333714235,1722397849242,-151.0,0.00014571,2]
[333714236,1722397849251,-151.0,0.00014571,2]
[333714237,1722397849421,-288.721701,0.00014571,2]
[333714238,1722397849433,-224.453646,0.00014571,2]
[333714239,1722397849443,-224.453646,0.00014571,2]
[333714240,1722397849455,-224.453646,0.00014571,2]
[333714241,1722397849465,-224.453646,0.00014571,2]
[333714242,1722397849475,-533.3787791,0.00014571,2]
[333714243,1722397849485,-6317.77,0.00014571,2]
[333714244,1722397849496,-6317.77,0.00014571,2]
[333714245,1722397849506,-928.066604,0.00014571,2]
[333714246,1722397849515,-928.066604,0.00014571,2]
[333714247,1722397849525,-928.066604,0.00014571,2]
[333714248,1722397849534,-928.066604,0.00014571,2]
[333714249,1722397849544,-151.0,0.00014571,2]
[333714250,1722397849554,-151.0,0.00014571,2]
[333714251,1722397849565,-950.610701,0.00014571,2]
[333714252,1722397849576,-950.610701,0.00014571,2]
[333714253,1722397849590,-950.610701,0.00014571,2]
[333714254,1722397849601,-950.610701,0.00014571,2]
[333714255,1722397849611,-151.0,0.00014571,2]
[333714256,1722397849622,-151.0,0.00014571,2]
[333714257,1722397849634,-1789.79117795,0.00014572,2]
[333714258,1722397849643,-505.12224084,0.00014572,2]
[333714259,1722397849653,-151.0,0.00014572,2]
[333714260,1722397849664,-151.0,0.00014572,2]
[333714261,1722397849673,-174.482377,0.00014572,2]
[333714262,1722397849686,-174.482377,0.00014572,2]
[333714263,1722397849698,-151.0,0.00014572,2]
[333714264,1722397849708,-500.0,0.00014572,2]
[333714265,1722397849719,-151.0,0.00014572,2]
[333714266,1722397849728,-500.0,0.00014573,2]
[333714267,1722397849739,-333.30187691,0.00014573,2]
[333714268,1722397849748,-500.0,0.00014573,2]
[333714269,1722397849759,-500.0,0.00014574,2]
[333714270,1722397849770,-500.0,0.00014574,2]
[333714271,1722397849780,-151.0,0.00014574,2]
[333714272,1722397849790,-166.724766,0.00014574,2]
[333714273,1722397849800,-166.724766,0.00014574,2]
[333714274,1722397849811,-151.0,0.00014574,2]
[333714275,1722397849822,-155.355236,0.00014574,2]
[333714276,1722397849833,-224.453646,0.00014574,2]
[333714277,1722397849843,-224.453646,0.00014574,2]
[333714278,1722397849853,-6317.77,0.00014574,2]
[333714279,1722397849863,-928.066604,0.00014574,2]
[333714280,1722397849874,-928.066604,0.00014574,2]
[333714281,1722397849884,-151.0,0.00014574,2]
[333714282,1722397849894,-950.610701,0.00014574,2]
[333714283,1722397849905,-950.610701,0.00014574,2]
[333714284,1722397849914,-151.0,0.00014575,2]
[333714285,1722397849925,-152.080337,0.00014575,2]
[333714286,1722397849937,-500.0,0.00014582,2]
[333714287,1722397849947,-500.0,0.00014582,2]
[333714288,1722397849958,-500.0,0.00014582,2]
[333714289,1722397849969,-151.0,0.00014582,2]
[333714290,1722397849978,-6317.77,0.00014582,2]
[333714291,1722397849988,-151.0,0.00014582,2]
[333714292,1722397849997,-500.0,0.00014583,2]
[333714293,1722397850006,-504.78425261,0.00014583,2]
[333714294,1722397850016,-507.56108772,0.00014583,2]
[333714295,1722397850026,-516.37707143,0.00014583,2]
[333714296,1722397850035,-502.14850402,0.00014583,2]
[333714297,1722397850045,-589.83209123,0.00014583,2]
[333714298,1722397850055,-504.06275825,0.00014583,2]
[333714299,1722397850066,-151.0,0.00014583,2]
[333714300,1722397850075,-151.0,0.00014583,2]
[333714301,1722397850084,-174.482377,0.00014583,2]
[333714302,1722397850094,-174.482377,0.00014583,2]
[333714303,1722397850106,-151.0,0.00014583,2]
[333714304,1722397850115,-500.0,0.00014584,2]
[333714305,1722397850126,-189.183826,0.00014584,2]
[333714306,1722397850136,-490.43608267,0.00014585,2]
[333714307,1722397850146,-6317.77,0.00014585,2]
[333714308,1722397850157,-151.00000098,0.00014586,2]
[333714309,1722397850167,-500.0,0.00014586,2]
[333714310,1722397850177,-154.75672,0.00014587,2]
[333714311,1722397850188,-151.0,0.00014587,2]
[333714312,1722397850198,-151.040945,0.00014598,2]
[333714313,1722397850209,-153.0,0.000146,2]
[333714314,1722397850220,-150.112233,0.000146,2]
[333714315,1722397850230,-150.112233,0.000146,2]
[333714316,1722397850239,-150.112233,0.000146,2]
[333714317,1722397850249,-153.0,0.000146,2]
[333714318,1722397850259,-153.0,0.000146,2]
[333714319,1722397850269,-150.112233,0.000146,2]
[333714320,1722397850279,-150.112233,0.000146,2]
[333714321,1722397850290,-1789.79117795,0.00014669,2]
[333714322,1722397850299,-158.851484,0.00014679,2]
[333714323,1722397850308,-174.482377,0.00014679,2]
[333714324,1722397850318,-174.482377,0.00014679,2]
[333714325,1722397850327,-151.0,0.00014679,2]
[333714326,1722397850337,-347.97835872,0.00014679,2]
[333714327,1722397850347,-151.0,0.00014679,2]
[333714328,1722397850359,-166.724766,0.00014679,2]
[333714329,1722397850368,-151.0,0.00014679,2]
[333714330,1722397850379,-166.724766,0.00014679,2]
[333714331,1722397850389,-151.0,0.00014679,2]
[333714332,1722397850399,-224.453646,0.00014679,2]
[333714333,1722397850409,-224.453646,0.00014679,2]
[333714334,1722397850419,-6317.77,0.00014679,2]
[333714335,1722397850430,-928.066604,0.00014679,2]
[333714336,1722397850440,-928.066604,0.00014679,2]
[333714337,1722397850450,-1789.79117795,0.00014679,2]
[333714338,1722397850460,-1789.79117795,0.0001468,2]
[333714339,1722397850470,-6317.77,0.00014688,2]
[333714340,1722397850480,-174.482377,0.00014689,2]
[333714341,1722397850490,-174.482377,0.00014689,2]
[333714342,1722397850500,-151.0,0.00014689,2]
[333714343,1722397850509,-6317.77,0.00014689,2]
[333714344,1722397850519,-6317.77,0.00014689,2]
[333714345,1722397850529,-151.0,0.00014689,2]
[333714346,1722397850539,-950.610701,0.00014689,2]
[333714347,1722397850549,-950.610701,0.00014689,2]
[333714348,1722397850558,-1091.29802379,0.0001469,2]
[333714349,1722397850570,-527.06939469,0.0001469,2]
[333714350,1722397850581,-100000.0,0.0001469,2]
[333714351,1722397850594,-166.724766,0.0001469,2]
[333714352,1722397850603,-151.0,0.0001469,2]
[333714353,1722397850613,-166.724766,0.0001469,2]
[333714354,1722397850623,-151.0,0.0001469,2]
[333714355,1722397850634,-224.453646,0.0001469,2]
[333714356,1722397850644,-224.453646,0.0001469,2]
[333714357,1722397850654,-151.0,0.0001469,2]
[333714358,1722397850667,-950.610701,0.0001469,2]
[333714359,1722397850677,-950.610701,0.0001469,2]
[333714360,1722397850688,-151.0,0.0001469,2]
[333714361,1722397850697,-153.0,0.000147,2]
[333714362,1722397850706,-153.0,0.000147,2]
[333714363,1722397850715,-150.112233,0.000147,2]
[333714364,1722397850725,-150.112233,0.000147,2]
[333714365,1722397850734,-150.112233,0.000147,2]
[333714366,1722397850744,-150.112233,0.000147,2]
[333714367,1722397850754,-3000.0,0.000147,30]
[333714368,1722397850764,-928.066604,0.000147,2]
[333714369,1722397850774,-928.066604,0.000147,2]
[333714370,1722397850785,-150.112233,0.000147,2]
[333714371,1722397850797,-3000.0,0.0001471,30]
[333714372,1722397850807,-3000.0,0.0001472,30]
[333714373,1722397850817,-3000.0,0.0001473,30]
[333714374,1722397850829,-6317.77,0.00014739,2]
[333714375,1722397850838,-151.682,0.0001474,2]
[333714376,1722397850849,-511.693,0.0001474,2]
[333714377,1722397850859,-1418.023,0.0001474,2]
[333714378,1722397850869,-3000.0,0.0001474,30]
[333714379,1722397850880,-3000.0,0.0001475,30]
[333714380,1722397850889,-195.308832,0.0001475,2]
[333714381,1722397850898,-950.610701,0.0001475,2]
[333714382,1722397850907,-950.610701,0.0001475,2]
[333714383,1722397850916,-151.0,0.00014753,2]
[333714384,1722397850926,-1789.79117795,0.00014753,2]
[333714385,1722397850936,-3000.0,0.0001476,30]
[333714386,1722397850946,-4283.912,0.00014763,2]
[333714387,1722397850956,-3000.0,0.0001477,30]
[333714388,1722397850966,-174.482377,0.00014779,2]
[333714389,1722397850976,-174.482377,0.00014779,2]
[333714390,1722397850986,-151.0,0.00014779,2]
[333714391,1722397850996,-3000.0,0.0001478,30]
[333714392,1722397851006,-6317.77,0.00014788,2]
[333714393,1722397851014,-151.0,0.00014789,2]
[333714394,1722397851023,-3000.0,0.0001479,30]
[333714395,1722397851033,-166.724766,0.0001479,2]
[333714396,1722397851044,-151.0,0.0001479,2]
[333714397,1722397851054,-166.724766,0.0001479,2]
[333714398,1722397851063,-224.453646,0.0001479,2]
[333714399,1722397851073,-224.453646,0.0001479,2]
[333714400,1722397851082,-928.066604,0.0001479,2]
[333714401,1722397851091,-928.066601,0.0001479,2]
[333714402,1722397851100,-150.112233,0.000148,2]
[333714403,1722397851109,-150.112233,0.000148,2]
[333714404,1722397851119,-150.112233,0.000148,2]
[333714405,1722397851130,-3000.0,0.000148,30]
[333714406,1722397851141,-150.112233,0.000148,2]
[333714407,1722397851151,-3604.473109,0.0001481,30]
[333714408,1722397851162,-1789.79117795,0.00014821,2]
[333714409,1722397851172,-3579.5823559,0.00014823,2]
[333714410,1722397851186,-1643.0,0.0001483,2]
[333714411,1722397851197,-538.72,0.0001483,2]
[333714412,1722397851208,-8124.24,0.0001483,2]
[333714413,1722397851218,-1736.76,0.0001483,2]
[333714414,1722397851227,-1658.46,0.0001483,2]
[333714415,1722397851237,-533.28,0.0001483,2]
[333714416,1722397851246,-1750.14,0.0001483,2]
[333714417,1722397851256,-500.0,0.0001483,2]
[333714418,1722397851265,-500.0,0.0001483,2]
[333714419,1722397851274,-1301.51,0.0001483,2]
[333714420,1722397851283,-253.12,0.0001483,2]
[333714421,1722397851292,-701.21,0.00014831,2]
[333714422,1722397851301,-6317.77,0.00014831,2]
[333714423,1722397851310,-11725.93,0.00014831,2]
[333714424,1722397851320,-500.0,0.00014831,2]
[333714425,1722397851329,-1651.49,0.00014831,2]
[333714426,1722397851339,-506.80262139,0.00014831,2]
[333714427,1722397851348,-1355.4,0.00014831,2]
[333714428,1722397851359,-1361.02,0.00014831,2]
[333714429,1722397851370,-151.0,0.00014832,2]
[333714430,1722397851380,-500.0,0.00014833,2]
[333714431,1722397851391,-505.82207834,0.00014833,2]
[333714432,1722397851402,-500.0,0.00014833,2]
[333714433,1722397851414,-508.75893975,0.00014833,2]
[333714434,1722397851426,-1412.4,0.00014833,2]
[333714435,1722397851436,-500.0,0.00014833,2]
[333714436,1722397851446,-1228.98,0.00014833,2]
[333714437,1722397851456,-2205.43,0.00014833,2]
[333714438,1722397851466,-500.0,0.00014833,2]
[333714439,1722397851474,-500.0,0.00014833,2]
[333714440,1722397851484,-166.724766,0.00014833,2]
[333714441,1722397851496,-500.0,0.00014833,2]
[333714442,1722397851507,-151.0,0.00014833,2]
[333714443,1722397851517,-166.72476787,0.00014833,2]
[333714444,1722397851529,-2229.7,0.00014833,2]
[333714445,1722397851538,-500.0,0.00014833,2]
[333714446,1722397851548,-500.0,0.00014833,2]
[333714447,1722397851560,-1670.82,0.00014833,2]
[333714448,1722397851570,-3733.25,0.00014833,2]
[333714449,1722397851582,-500.0,0.00014833,2]
[333714450,1722397851594,-377.33911725,0.00014833,2]
[333714451,1722397851603,-151.0,0.00014833,2]
[333714452,1722397851613,-222.14255538,0.00014833,2]
[333714453,1722397851622,-500.0,0.00014833,2]
[333714454,1722397851633,-1932.92,0.00014833,2]
[333714455,1722397851642,-500.0,0.00014833,2]
[333714456,1722397851651,-500.0,0.00014833,2]
[333714457,1722397851661,-15051.1,0.00014833,2]
[333714458,1722397851672,-500.0,0.00014833,2]
[333714459,1722397851683,-224.453646,0.00014833,2]
[333714460,1722397851692,-815.35,0.00014833,2]
[333714461,1722397851701,-224.453656,0.00014833,2]
[333714462,1722397851710,-5250.58,0.00014833,2]
[333714463,1722397851719,-500.0,0.00014833,2]
[333714464,1722397851728,-2154.5,0.00014833,2]
[333714465,1722397851737,-500.0,0.00014833,2]
[333714466,1722397851746,-500.0,0.00014833,2]
[333714467,1722397851755,-500.0,0.00014833,2]
[333714468,1722397851766,-500.0,0.00014833,2]
[333714469,1722397851776,-500.0,0.00014833,2]
[333714470,1722397851787,-835.54,0.00014833,2]
[333714471,1722397851796,-868.91,0.00014833,2]
[333714472,1722397851806,-867.06,0.00014833,2]
[333714473,1722397851815,-500.0,0.00014833,2]
[333714474,1722397851825,-6317.77,0.00014833,2]
[333714475,1722397851836,-1487.06,0.00014833,2]
[333714476,1722397851848,-540.57086461,0.00014833,2]
[333714477,1722397851858,-456.23014384,0.00014833,2]
[333714478,1722397851868,-672.28,0.00014833,2]
[333714479,1722397851879,-500.0,0.00014833,2]
[333714480,1722397851889,-928.14,0.00014833,2]
[333714481,1722397851899,-500.0,0.00014833,2]
[333714482,1722397851909,-1260.74,0.00014833,2]
[333714483,1722397851919,-500.0,0.00014833,2]
[333714484,1722397851928,-500.0,0.00014833,2]
[333714485,1722397851938,-879.2,0.00014833,2]
[333714486,1722397851947,-500.0,0.00014833,2]
[333714487,1722397851957,-504.59963047,0.00014833,2]
[333714488,1722397851967,-4835.21,0.00014833,2]
[333714489,1722397851976,-500.0,0.00014833,2]
[333714490,1722397851986,-669.02,0.00014833,2]
[333714491,1722397851996,-500.0,0.00014833,2]
[333714492,1722397852005,-932.36,0.00014833,2]
[333714493,1722397852014,-540.84944894,0.00014833,2]
[333714494,1722397852023,-950.610701,0.00014833,2]
[333714495,1722397852034,-950.610707,0.00014833,2]
[333714496,1722397852044,-579.78,0.00014833,2]
[333714497,1722397852053,-500.0,0.00014833,2]
[333714498,1722397852062,-1452.91,0.00014833,2]
[333714499,1722397852072,-2466.09,0.00014833,2]
[333714500,1722397852082,-988.86,0.00014833,2]
[333714501,1722397852092,-217.321615,0.00014833,2]
[333714502,1722397852104,-151.040945,0.00014833,2]
[333714503,1722397852114,-174.482377,0.00014834,2]
[333714504,1722397852124,-174.482377,0.00014834,2]
[333714505,1722397852135,-151.0,0.00014834,2]
[333714506,1722397852144,-500.0,0.00014835,2]
[333714507,1722397852155,-500.0,0.00014835,2]
[333714508,1722397852165,-500.0,0.00014835,2]
[333714509,1722397852175,-500.0,0.00014835,2]
[333714510,1722397852188,-500.0,0.00014835,2]
[333714511,1722397852197,-306.4692089,0.00014835,2]
[333714512,1722397852207,-500.0,0.00014835,2]
[333714513,1722397852218,-500.0,0.00014835,2]
[333714514,1722397852228,-951.55,0.00014835,2]
[333714515,1722397852239,-1221.36,0.00014835,2]
[333714516,1722397852250,-536.2154577,0.00014835,2]
[333714517,1722397852260,-576.4,0.00014835,2]
[333714518,1722397852271,-500.0,0.00014835,2]
[333714519,1722397852282,-500.0,0.00014835,2]
[333714520,1722397852291,-628.42,0.00014835,2]
[333714521,1722397852300,-815.24,0.00014835,2]
[333714522,1722397852309,-500.0,0.00014835,2]
[333714523,1722397852318,-1535.51,0.00014835,2]
[333714524,1722397852329,-500.0,0.00014835,2]
[333714525,1722397852339,-631.39,0.00014835,2]
[333714526,1722397852351,-500.0,0.00014835,2]
[333714527,1722397852362,-500.0,0.00014835,2]
[333714528,1722397852373,-1351.18,0.00014835,2]
[333714529,1722397852384,-1189.1,0.00014835,2]
[333714530,1722397852396,-363.07513484,0.00014835,2]
[333714531,1722397852407,-500.0,0.00014835,2]
[333714532,1722397852418,-2129.0,0.00014835,2]
[333714533,1722397852430,-500.0,0.00014835,2]
[333714534,1722397852440,-664.2,0.00014835,2]
[333714535,1722397852450,-500.0,0.00014835,2]
[333714536,1722397852459,-500.0,0.00014835,2]
[333714537,1722397852470,-516.53044072,0.00014835,2]
[333714538,1722397852480,-500.0,0.00014835,2]
[333714539,1722397852489,-1090.12,0.00014835,2]
[333714540,1722397852500,-1144.66,0.00014835,2]
[333714541,1722397852512,-500.0,0.00014835,2]
[333714542,1722397852523,-500.0,0.00014835,2]
[333714543,1722397852536,-1017.64,0.00014835,2]
[333714544,1722397852548,-1070.38,0.00014835,2]
[333714545,1722397852559,-500.0,0.00014835,2]
[333714546,1722397852571,-500.0,0.00014835,2]
[333714547,1722397852582,-500.0,0.00014835,2]
[333714548,1722397852595,-500.0,0.00014835,2]
[333714549,1722397852604,-500.0,0.00014835,2]
[333714550,1722397852614,-500.0,0.00014835,2]
[333714551,1722397852624,-2081.01,0.00014835,2]
[333714552,1722397852633,-500.0,0.00014835,2]
[333714553,1722397852643,-513.75169294,0.00014835,2]
[333714554,1722397852653,-4376.54,0.00014835,2]
[333714555,1722397852667,-457.60698049,0.00014835,2]
[333714556,1722397852677,-10644.8,0.00014835,2]
[333714557,1722397852688,-809.96,0.00014835,2]
[333714558,1722397852698,-503.10294862,0.00014835,2]
[333714559,1722397852709,-500.0,0.00014835,2]
[333714560,1722397852719,-500.0,0.00014835,2]
[333714561,1722397852730,-500.0,0.00014835,2]
[333714562,1722397852742,-500.0,0.00014835,2]
[333714563,1722397852751,-680.45,0.00014835,2]
[333714564,1722397852762,-559.58,0.00014835,2]
[333714565,1722397852773,-506.12725502,0.00014835,2]
[333714566,1722397852783,-500.0,0.00014835,2]
[333714567,1722397852792,-774.49,0.00014835,2]
[333714568,1722397852802,-588.92,0.00014835,2]
[333714569,1722397852811,-506.65070889,0.00014835,2]
[333714570,1722397852820,-500.0,0.00014835,2]
[333714571,1722397852829,-500.0,0.00014835,2]
[333714572,1722397852838,-912.91,0.00014835,2]
[333714573,1722397852847,-666.16,0.00014835,2]
[333714574,1722397852857,-500.0,0.00014835,2]
[333714575,1722397852868,-500.0,0.00014835,2]
[333714576,1722397852878,-1414.5,0.00014835,2]
[333714577,1722397852888,-479.0,0.00014835,2]
[333714578,1722397852899,-622.01,0.00014835,2]
[333714579,1722397852911,-1878.34,0.00014835,2]
[333714580,1722397852920,-500.0,0.00014835,2]
[333714581,1722397852932,-4085.52,0.00014835,2]
[333714582,1722397852941,-2827.47,0.00014835,2]
[333714583,1722397852950,-500.0,0.00014835,2]
[333714584,1722397852963,-500.0,0.00014835,2]
[333714585,1722397852972,-500.0,0.00014835,2]
[333714586,1722397852981,-1737.24,0.00014835,2]
[333714587,1722397852990,-2254.72,0.00014835,2]
[333714588,1722397853000,-561.25,0.00014835,2]
[333714589,1722397853009,-508.8,0.00014835,2]
[333714590,1722397853020,-500.0,0.00014835,2]
[333714591,1722397853030,-506.79730804,0.00014835,2]
[333714592,1722397853039,-500.0,0.00014835,2]
[333714593,1722397853048,-520.31225903,0.00014835,2]
[333714594,1722397853194,-6317.77,0.00014841,2]
[333714595,1722397853207,-6317.77,0.00014841,2]
[333714596,1722397853217,-6317.77,0.00014841,2]
[333714597,1722397853226,-6317.77,0.00014841,2]
[333714598,1722397853234,-6317.98876849,0.00014841,2]
[333714599,1722397853244,-174.482377,0.00014842,2]
[333714600,1722397853253,-174.482377,0.00014842,2]
[333714601,1722397853261,-151.0,0.00014842,2]
[333714602,1722397853270,-500.0,0.00014844,2]
[333714603,1722397853279,-500.0,0.00014844,2]
[333714604,1722397853291,-500.0,0.00014844,2]
[333714605,1722397853301,-500.0,0.00014844,2]
[333714606,1722397853312,-500.0,0.00014844,2]
[333714607,1722397853322,-817.86,0.00014844,2]
[333714608,1722397853333,-526.72766796,0.00014844,2]
[333714609,1722397853344,-798.71,0.00014844,2]
[333714610,1722397853354,-500.0,0.00014844,2]
[333714611,1722397853363,-500.0,0.00014844,2]
[333714612,1722397853372,-500.0,0.00014844,2]
[333714613,1722397853381,-616.58976198,0.00014844,2]
[333714614,1722397853391,-514.25116428,0.00014844,2]
[333714615,1722397853401,-1492.88,0.00014844,2]
[333714616,1722397853411,-500.0,0.00014844,2]
[333714617,1722397853422,-500.0,0.00014844,2]
[333714618,1722397853434,-510.24260165,0.00014844,2]
[333714619,1722397853444,-1459.29,0.00014844,2]
[333714620,1722397853455,-513.26404875,0.00014844,2]
[333714621,1722397853465,-511.753161,0.00014844,2]
[333714622,1722397853475,-505.03768919,0.00014844,2]
[333714623,1722397853485,-174.482377,0.00014844,2]
[333714624,1722397853495,-657.85,0.00014844,2]
[333714625,1722397853506,-507.15180726,0.00014844,2]
[333714626,1722397853517,-174.482376,0.00014844,2]
[333714627,1722397853527,-500.0,0.00014844,2]
[333714628,1722397853538,-506.01516671,0.00014844,2]
[333714629,1722397853549,-505.63265655,0.00014844,2]
[333714630,1722397853562,-151.0,0.00014844,2]
[333714631,1722397853574,-900.86,0.00014844,2]
[333714632,1722397853587,-500.0,0.00014844,2]
[333714633,1722397853599,-500.0,0.00014844,2]
[333714634,1722397853609,-500.0,0.00014844,2]
[333714635,1722397853618,-500.0,0.00014844,2]
[333714636,1722397853629,-500.0,0.00014844,2]
[333714637,1722397853638,-537.14,0.00014844,2]
[333714638,1722397853647,-500.0,0.00014844,2]
[333714639,1722397853656,-952.73,0.00014844,2]
[333714640,1722397853668,-500.0,0.00014844,2]
[333714641,1722397853684,-1116.55,0.00014844,2]
[333714642,1722397853694,-518.66320802,0.00014844,2]
[333714643,1722397853704,-500.0,0.00014844,2]
[333714644,1722397853713,-500.0,0.00014844,2]
[333714645,1722397853722,-3504.84,0.00014844,2]
[333714646,1722397853731,-500.0,0.00014844,2]
[333714647,1722397853740,-500.0,0.00014844,2]
[333714648,1722397853749,-933.93,0.00014844,2]
[333714649,1722397853760,-500.0,0.00014844,2]
[333714650,1722397853770,-508.46440476,0.00014844,2]
[333714651,1722397853779,-500.0,0.00014844,2]